[Event "FIDE WSCC 50 2022"]
[Site "Assisi"]
[Date "2022.11.22"]
[Round "7.15"]
[White "Arkell, Keith C"]
[Black "Al-Ali, Hussein Ali Hussein"]
[Result "1/2-1/2"]
[ECO "A55"]
[WhiteElo "2408"]
[BlackElo "2231"]
[Annotator "TA"]
[PlyCount "152"]
[EventDate "2022.11.14"]
[EventType "swiss"]
[EventCountry "ITA"]
[SourceTitle "playchess.com"]
[Source "ChessBase"]
[SourceQuality "1"]
[TimeControl "40/5400+30:1800+30"]

{[%evp 20,152,83,87,82,74,83,62,74,57,71,62,66,69,69,37,20,43,42,0,45,45,45,49,53,3,18,9,15,0,0,0,0,0,0,0,43,43,47,46,43,48,34,47,41,27,47,13,60,10,15,7,16,0,0,0,0,0,0,0,0,0,0,0,0,0,0,0,0,0,0,0,0,0,0,0,0,0,0,0,0,0,0,0,0,0,0,0,0,0,0,0,443,443,443,443,443,443,443,443,443,443,443,443,443,443,443,443,443,8,8,8,8,8,8,8,8,0,0,0,0,0,0,0,0,0,8,0,2,0,0,0,0,0,0]} 1. d4 {[%emt 0:01:50]} Nf6 {[%emt 0:00:47]} 2. Nf3 {[%emt 0:00:05]} d6 {[%emt 0:01:57]} 3. g3 {[%emt 0:00:05]} Nbd7 {[%emt 0:00:09]} 4. c4 {[%emt 0:00:06]} e5 {[%emt 0:00:11]} 5. Nc3 {[%emt 0:00:03]} Be7 {[%emt 0:00:37]} 6. Bg2 {[%emt 0:00:06]} O-O {[%emt 0:00:13]} 7. O-O {[%emt 0:00:03]} c6 {[%emt 0:01:22]} 8. e4 {[%emt 0:00:05]} Qc7 {[%emt 0:01:01]} 9. h3 {[%emt 0:00:20]} Re8 {[%emt 0:01:13]} 10. Be3 {[%emt 0:00:17]} exd4 {[%emt 0:00:51]} 11. Nxd4 {[%emt 0:00:15]} ({Reject} 11. Qxd4 $6 Ne5 $11) 11... Bf8 {[%emt 0:00:14] A55: Old Indian Defence with Nf3 and e4.} 12. Qc2 {[%emt 0:01:23]} a6 {[%emt 0:01:54]} 13. Rfd1 {[%emt 0:01:32] [#]} Rb8 $146 {[%emt 0:00:15] White is slightly better.} ({Predecessor:} 13... Ne5 14. b3 Ng6 15. Rac1 h5 16. Bg5 Nh7 17. Be3 b6 18. Nxc6 Qxc6 19. e5 Qc7 20. Bxa8 Bxh3 {0-1 (32) Bogosavljevic,B (2580)-Ratkovic,M (2228) Belgrade 2015}) 14. Rd2 {[%emt 0:01:46] White is more active.} Ne5 {[%emt 0:00:50]} 15. b3 {[%emt 0:00:15]} c5 {[%emt 0:00:45]} 16. Nf5 {[%emt 0:01:37]} b5 {[%emt 0:03:09]} 17. cxb5 {[%emt 0:00:11]} axb5 {[%emt 0:00:37]} 18. Bg5 {[%emt 0:04:27]} b4 {[%emt 0:00:31] [#] White must now prevent ...Bxf5.} 19. Ne2 {[%emt 0:00:30]} Bxf5 {[%emt 0:01:01]} 20. exf5 {[%emt 0:00:24]} Ned7 {[%emt 0:02:15]} 21. Rad1 {[%emt 0:02:49]} h6 {[%emt 0:01:00]} 22. Be3 {[%emt 0:01:17]} (22. Bh4 $14) 22... Rbc8 $11 {[%emt 0:02:59]} 23. Nf4 {[%emt 0:03:17]} Nb6 {[%emt 0:01:29]} 24. Rc1 {[%emt 0:06:42][%cal Oe3d4]} Qb8 {[%emt 0:02:47][%cal Od6d5]} 25. Nd5 {[%emt 0:04:46]} Nbxd5 {[%emt 0:01:49]} 26. Bxd5 {[%emt 0:00:04]} Re5 {[%emt 0:00:13]} 27. Bf3 {[%emt 0:02:22]} Rce8 {[%emt 0:00:44]} 28. Bf4 {[%emt 0:00:36]} Re1+ {[%emt 0:00:35]} 29. Rxe1 {[%emt 0:00:11]} Rxe1+ {[%emt 0:00:11]} 30. Kg2 {[%emt 0:00:13] Threatens to win with Qxc5.} Qb5 {[%emt 0:00:17] [#] ( -> ...Qf1+)} 31. Qd3 {[%emt 0:01:34] Against Qf1+} Qd7 {[%emt 0:03:27]} 32. g4 {[%emt 0:02:15][%cal Rf4d6]} Qe8 $1 {[%emt 0:02:14]} 33. h4 {[%emt 0:06:58]} Ne4 {[%emt 0:02:01]} (33... d5 $11) 34. Re2 {[%emt 0:01:22]} (34. Rc2 $1 $14) 34... Rxe2 {[%emt 0:00:06]} 35. Qxe2 {[%emt 0:00:10]} d5 {[%emt 0:00:22]} 36. Bxe4 {[%emt 0:00:12]} dxe4 {[%emt 0:00:21][%mdl 4096] Endgame KQB-KQB} 37. g5 {[%emt 0:02:48]} Qc6 {[%emt 0:00:38]} 38. Qc4 {[%emt 0:00:50]} hxg5 {[%emt 0:00:28]} 39. hxg5 {[%emt 0:00:10]} g6 {[%emt 0:00:13]} 40. f6 {[%emt 0:00:42]} Qa8 {[%emt 0:02:43]} 41. Qe2 {[%emt 0:34:23]} Qd5 {[%emt 0:31:15]} 42. Qc4 {[%emt 0:09:07]} Qa8 {[%emt 0:00:20]} 43. Qc2 {[%emt 0:00:16]} Qd5 {[%emt 0:00:52]} 44. Kf1 {[%emt 0:01:04]} Qe6 {[%emt 0:01:02]} 45. Ke1 {[%emt 0:02:44]} Qf5 {[%emt 0:01:00]} 46. Qd2 {[%emt 0:01:15]} Qe6 {[%emt 0:01:52]} 47. Qe2 {[%emt 0:04:23]} Qf5 {[%emt 0:01:39]} 48. Be3 {[%emt 0:02:19]} Qe5 {[%emt 0:00:29]} 49. Qa6 {[%emt 0:02:56]} Qc3+ {[%emt 0:02:05]} 50. Ke2 {[%emt 0:00:46]} Qb2+ {[%emt 0:01:44]} 51. Bd2 {[%emt 0:00:11]} Qd4 {[%emt 0:04:16]} 52. Qc4 {[%emt 0:00:24]} Bd6 {[%emt 0:02:11]} 53. Qc2 {[%emt 0:14:03]} Kf8 {[%emt 0:02:19]} 54. Be3 {[%emt 0:00:08]} Qd5 {[%emt 0:00:49]} 55. Qc4 {[%emt 0:00:55]} Qxc4+ {[%emt 0:01:06][%mdl 8192]} ({Don't do} 55... Qf5 56. Qa6 Qe6 57. Qa8+ Qe8 58. Qd5 $16) (55... Qe5 $11 {and Black has nothing to worry.}) 56. bxc4 {[%emt 0:00:02] KB-KB} Ke8 {[%emt 0:00:08]} 57. Bd2 {[%emt 0:00:46] Ke3 is the strong threat.} Be5 {[%emt 0:01:50]} 58. Ke3 {[%emt 0:04:13]} Bd4+ {[%emt 0:00:05]} 59. Kxe4 {[%emt 0:00:06]} Bxf2 {[%emt 0:00:02]} 60. Kd5 {[%emt 0:00:35]} Kd7 {[%emt 0:00:05]} 61. Bf4 {[%emt 0:00:37]} Bg1 {[%emt 0:01:00]} 62. Bd6 {[%emt 0:00:39]} Be3 {[%emt 0:00:13]} 63. Bxc5 {[%emt 0:00:08]} Bxg5 {[%emt 0:00:06]} 64. Be7 $2 {[%emt 0:00:37]} ({White has to play} 64. Bxb4 $18 Bxf6 65. c5) 64... Bd2 {[%emt 0:02:21] The position is equal.} 65. c5 {[%emt 0:00:16][%cal Bc4c5,Bc5c6][%mdl 32]} g5 {[%emt 0:00:51]} 66. c6+ {[%emt 0:13:02]} Kc8 {[%emt 0:00:04]} 67. Bd6 {[%emt 0:00:41]} Bc3 {[%emt 0:00:39]} 68. Ke4 {[%emt 0:00:51]} Bxf6 {[%emt 0:01:10]} 69. Bxb4 {[%emt 0:00:14]} Bd8 {[%emt 0:02:50]} 70. a4 {[%emt 0:01:34][%cal Ba2a4,Ba4a5][%mdl 32]} g4 {[%emt 0:00:55]} 71. a5 {[%emt 0:00:00] Strongly threatening a6.} f5+ {[%emt 0:00:00]} 72. Kxf5 {[%emt 0:00:00] White threatens a6 and mate.} Kc7 {[%emt 0:00:00]} 73. Kxg4 {[%emt 0:00:00]} Kxc6 {[%emt 0:00:00]} 74. Be1 {[%emt 0:00:00]} Kb5 {[%emt 0:00:00]} 75. Kh3 {[%emt 0:00:00]} Bxa5 {[%emt 0:00:00]} 76. Bxa5 {[%emt 0:00:00]} Kxa5 {[%emt 0:00:00] Black defended with fortune.  Weighted Error Value: White=0.07 (flawless) /Black=0.16 (very precise)} 1/2-1/2

[Event "FIDE WSCC 50 2022"]
[Site "Assisi"]
[Date "2022.11.25"]
[Round "10.1"]
[White "Bellia, Fabrizio"]
[Black "Sturua, Zurab"]
[Result "1/2-1/2"]
[ECO "C67"]
[WhiteElo "2398"]
[BlackElo "2522"]
[Annotator "TA"]
[PlyCount "72"]
[EventDate "2022.11.14"]
[EventType "swiss"]
[EventCountry "ITA"]
[SourceTitle "playchess.com"]
[Source "ChessBase"]
[SourceQuality "1"]
[TimeControl "40/5400+30:1800+30"]

{[%evp 9,72,17,6,0,0,0,0,0,18,18,16,35,18,17,21,32,35,-30,0,0,0,0,0,-12,-6,-61,-63,-62,-60,-79,-23,-27,46,51,35,44,59,50,99,93,68,70,74,27,47,43,50,-18,16,11,17,0,0,0,0,0,6,5,18,3,3,8,9,0,0]} 1. e4 {[%emt 0:00:05]} e5 {[%emt 0:00:11]} 2. Nf3 {[%emt 0:00:06]} Nc6 {[%emt 0:00:05]} 3. Bb5 {[%emt 0:00:04]} Nf6 {[%emt 0:00:35]} 4. O-O {[%emt 0:00:41]} Nxe4 {[%emt 0:00:16]} 5. Re1 {[%emt 0:00:06]} Nd6 {[%emt 0:00:11]} 6. a4 {[%emt 0:00:06] C67: Ruy Lopez: Berlin Defence: 4 0-0 Nxe4.} Be7 {[%emt 0:00:45]} 7. Nc3 {[%emt 0:00:09] Against e4} O-O {[%emt 0:01:48]} 8. d4 {[%emt 0:00:21]} Nxb5 {[%emt 0:08:59]} 9. axb5 {[%emt 0:02:26]} Nxd4 {[%emt 0:00:11]} 10. Nxd4 {[%emt 0:17:21]} exd4 {[%emt 0:00:05]} 11. Nd5 {[%emt 0:00:03]} (11. Qxd4 Bf6 12. Qc4 c6 $15) 11... Bf6 {[%emt 0:07:22]} 12. Qf3 {[%emt 0:11:30] Black must now prevent Nxf6+.} d6 {[%emt 0:00:31] [#]} 13. Bh6 $146 {[%emt 0:24:55]} ({Predecessor:} 13. Nxf6+ Qxf6 14. Qxf6 gxf6 15. Bh6 Rd8 16. Re7 Bd7 17. h4 Bxb5 18. Rxc7 Rac8 19. Rxb7 {1-0 (35) Perez Candelario,M (2579)-Garcia Ramos,D (2435) Linares 2022}) 13... Bg5 {[%emt 0:02:41]} (13... Bh4 $5 14. g3 c6 15. bxc6 bxc6 16. gxh4 cxd5 $15) 14. Bxg5 {[%emt 0:00:30]} Qxg5 {[%emt 0:00:08]} 15. Nxc7 {[%emt 0:00:12]} Rb8 {[%emt 0:00:32]} 16. h4 {[%emt 0:17:23]} (16. Rxa7 $2 Qc5 17. Ra8 (17. b6 $2 Qxb6 18. Ra4 Qxc7 $19) 17... Rxa8 18. Nxa8 Be6 $19) 16... Qc5 {[%emt 0:02:47]} 17. Nd5 {[%emt 0:01:58]} (17. Re7 $1 $11) 17... Be6 $15 {[%emt 0:01:40]} 18. Nf4 {[%emt 0:01:24]} Qxb5 {[%emt 0:07:21]} 19. b3 {[%emt 0:01:44][%cal Bb2b3,Bb3b4][%mdl 32]} Bf5 {[%emt 0:02:52]} (19... a6 $17 20. Qe2 Qxe2 21. Nxe2 d3 22. cxd3 Bxb3) 20. Ne2 $1 $11 {[%emt 0:01:39]} Qc5 {[%emt 0:06:45]} ({Black should play} 20... Bd7 $11) 21. b4 $1 $14 {[%emt 0:00:15]} (21. Nxd4 Qxd4 22. Qxf5 Qxh4 $15) 21... Qc8 {[%emt 0:01:37]} (21... Qxc2 $2 22. Nxd4 Qd3 23. Nxf5 Qxf3 24. gxf3 $18) 22. Nxd4 {[%emt 0:00:10]} Bg4 {[%emt 0:18:22]} 23. Qf4 {[%emt 0:04:49][%mdl 1024] White has compensation.} a6 {[%emt 0:00:55]} (23... Qd7 $14) 24. Ra3 $16 {[%emt 0:01:52] Threatens to win with Rg3.} (24. Qxd6 $6 Qc4 25. Qf4 Rbd8 $11) 24... h5 {[%emt 0:01:19]} 25. f3 {[%emt 0:01:27] White is much more active. The black rooks are badly placed.} ({But not} 25. Qxd6 Qc4 26. Qc5 Qxc5 27. bxc5 g6 $11) (25. Re7 $5 {[%cal Ra3g3]} Qc4 26. Rae3 $16) 25... Be6 {[%emt 0:01:28] [#]} 26. Rae3 {[%emt 0:04:16]} (26. Nxe6 $1 $16 fxe6 27. Qxd6) 26... Qd8 {[%emt 0:00:58]} 27. Qg3 {[%emt 0:01:03]} Qf6 {[%emt 0:03:37]} 28. c3 {[%emt 0:01:30]} (28. Qxd6 $2 {too greedy.} Rfd8 29. Rxe6 Rxd6 $19) (28. Nxe6 $14 fxe6 29. Rxe6 (29. Qxd6 Rbc8 $14)) 28... Rbe8 {[%emt 0:02:55] The position is equal.} 29. Qxd6 {[%emt 0:00:54][%cal Rd4e6]} Qxh4 {[%emt 0:00:35]} 30. Nxe6 {[%emt 0:02:29]} (30. Qb6 {with more complications.} Bd7 31. Qxb7 Rxe3 32. Rxe3 Qg5 33. Kf2) 30... fxe6 {[%emt 0:00:17]} 31. Rxe6 {[%emt 0:00:34]} Qxe1+ {[%emt 0:01:25]} (31... Rd8 {simplifies} 32. Qe7 Qxe7 33. Rxe7 Rf7) 32. Rxe1 {[%emt 0:00:05]} Rxe1+ $11 {[%emt 0:00:06] KQ-KRR} 33. Kf2 {[%emt 0:00:04]} Ree8 {[%emt 0:04:37]} 34. Qd5+ {[%emt 0:00:10]} Rf7 {[%emt 0:00:05]} 35. Qxh5 {[%emt 0:00:06]} Rc8 {[%emt 0:00:27]} 36. Qd5 {[%emt 0:01:11]} Rxc3 {[%emt 0:24:02] Weighted Error Value: White=0.12 (very precise) /Black=0.14 (very precise)} 1/2-1/2

[Event "FIDE WSCC 50 2022"]
[Site "Assisi"]
[Date "2022.11.25"]
[Round "10.2"]
[White "Morovic Fernandez, Ivan"]
[Black "Antic, Dejan"]
[Result "1-0"]
[ECO "C18"]
[WhiteElo "2480"]
[BlackElo "2412"]
[Annotator "TA"]
[PlyCount "55"]
[EventDate "2022.11.14"]
[EventType "swiss"]
[EventCountry "ITA"]
[SourceTitle "playchess.com"]
[Source "ChessBase"]
[SourceQuality "1"]
[TimeControl "40/5400+30:1800+30"]

{[%evp 14,55,0,21,0,-1,93,0,4,0,113,112,261,259,283,259,324,291,450,461,759,754,733,747,956,940,843,753,716,652,829,810,972,963,917,900,870,859,833,852,849,818,753,713]} 1. e4 {[%emt 0:00:03]} e6 {[%emt 0:00:43]} 2. d4 {[%emt 0:00:23]} d5 {[%emt 0:00:10]} 3. Nc3 {[%emt 0:00:13]} Bb4 {[%emt 0:01:37]} 4. e5 {[%emt 0:00:20]} c5 {[%emt 0:04:33]} 5. a3 {[%emt 0:00:18]} Bxc3+ {[%emt 0:00:22]} 6. bxc3 {[%emt 0:00:03]} Ne7 {[%emt 0:07:10]} 7. h4 {[%emt 0:00:37]} b6 {[%emt 0:01:50]} 8. h5 {[%emt 0:00:40]} h6 {[%emt 0:10:49] C18: French: 3 Nc3 Bb4: Main line: 7 h4 and 7 Qg4.} 9. Qg4 {[%emt 0:03:09] [#]} cxd4 $146 {[%emt 0:09:29]} (9... Kf8 $11) ({Predecessor:} 9... Nf5 10. Bd3 Kf8 11. Qf4 c4 12. Bxf5 exf5 13. a4 Be6 14. Ne2 Kg8 15. Ng3 Qd7 16. Nf1 {1-0 (47) Bartel,M (2600)-Studer,N (2494) Skopje 2018}) 10. cxd4 {[%emt 0:13:42]} (10. Qxg7 $16 Rg8 11. Qxh6) 10... Qc7 $1 $11 {[%emt 0:01:18] [#] Strongly threatening ...Qc3+. The position is equal.} 11. Bd2 {[%emt 0:06:04] Inhibits Qc3.} (11. Qxg7 $2 {perishes.} Qc3+ 12. Kd1 Qxd4+ 13. Bd3 Rg8 14. Qxh6 Qxa1 $19) 11... Qxc2 {[%emt 0:10:25]} (11... O-O $11) 12. Qxg7 $16 {[%emt 0:05:06]} Rg8 {[%emt 0:00:42] This costs Black the game.} (12... Rh7 $16 13. Qg3 (13. Bb5+ Nd7 $15) 13... Qe4+ 14. Ne2 Ba6) 13. Qxh6 $18 {[%emt 0:03:07]} Nbc6 {[%emt 0:03:40][%cal Bb8c6,Bc6d4,Bd4c2][%mdl 32]} (13... Qb2 $2 14. Rc1 $18) 14. Qf4 {[%emt 0:10:56]} Bd7 {[%emt 0:07:32]} 15. h6 {[%emt 0:09:36][%cal Bh5h6,Bh6h7][%mdl 32]} Nf5 {[%emt 0:08:15]} (15... O-O-O $142 16. h7 (16. Qxf7 Qe4+ 17. Ne2 Rdf8 $14) 16... Rh8) 16. Rc1 {[%emt 0:03:57] White is clearly winning.} Qa4 {[%emt 0:07:27]} (16... Qb2 $142 17. h7 Rh8) 17. h7 {[%emt 0:03:00]} Rh8 {[%emt 0:00:08]} 18. g4 {[%emt 0:02:57]} Ncxd4 {[%emt 0:01:33]} 19. gxf5 {[%emt 0:02:55] And now Qg3 would win.} Nc2+ {[%emt 0:00:27]} 20. Ke2 {[%emt 0:09:11][%cal Be1e2,Be2e3,Be3f3,Bf3g2][%mdl 32]} Nd4+ {[%emt 0:06:36]} 21. Ke3 {[%emt 0:01:44]} Nxf5+ {[%emt 0:00:27]} 22. Kf3 {[%emt 0:00:11]} d4 {[%emt 0:04:24]} 23. Kg2 {[%emt 0:02:29]} Bc6+ {[%emt 0:07:41] [#]} 24. Rxc6 $1 {[%emt 0:00:59]} Qxc6+ {[%emt 0:00:07]} 25. Qf3 {[%emt 0:00:03] Active counter play!} Qxf3+ {[%emt 0:01:59]} 26. Nxf3 {[%emt 0:00:25]} f6 {[%emt 0:00:49]} 27. Bd3 {[%emt 0:06:06]} Kf7 {[%emt 0:01:07]} 28. exf6 {[%emt 0:00:31] Weighted Error Value: White=0.15 (very precise) /Black=0.68} 1-0

[Event "FIDE WSCC 50 2022"]
[Site "Assisi"]
[Date "2022.11.25"]
[Round "10.3"]
[White "Vinter-Schou, Uffe"]
[Black "Bischoff, Klaus"]
[Result "0-1"]
[ECO "B22"]
[WhiteElo "2375"]
[BlackElo "2479"]
[Annotator "TA"]
[PlyCount "45"]
[EventDate "2022.11.14"]
[EventType "swiss"]
[EventCountry "ITA"]
[SourceTitle "playchess.com"]
[Source "ChessBase"]
[SourceQuality "1"]
[TimeControl "40/5400+30:1800+30"]

{[%evp 14,45,13,11,14,12,13,0,0,0,0,0,0,0,58,45,24,26,39,0,0,0,0,0,0,0,0,0,0,-66,-25,-176,-162,-285]} 1. e4 {[%emt 0:00:04]} c5 {[%emt 0:00:14]} 2. Nf3 {[%emt 0:00:07]} e6 {[%emt 0:01:06]} 3. c3 {[%emt 0:00:46]} d5 {[%emt 0:00:26]} 4. exd5 {[%emt 0:04:23]} Qxd5 {[%emt 0:00:30]} 5. d4 {[%emt 0:00:18]} Nf6 {[%emt 0:00:22]} 6. Na3 {[%emt 0:00:21]} Qd8 {[%emt 0:02:22]} 7. Nc2 {[%emt 0:02:17]} Nbd7 {[%emt 0:05:12]} 8. Be2 {[%emt 0:05:10]} Qc7 {[%emt 0:01:49] B22: Sicilian: 2 c3.} 9. O-O {[%emt 0:00:48]} Be7 {[%emt 0:00:45]} 10. Re1 {[%emt 0:03:51][%cal Of3e5]} O-O {[%emt 0:01:04] [#] The position is equal.} 11. Bg5 $146 {[%emt 0:02:05]} ({Predecessor:} 11. dxc5 Rd8 12. Ncd4 Nxc5 13. Qc2 a6 14. Bg5 b6 15. Nd2 {½-½ (15) Steinberg,S (1958)-Dost,A (1978) Bayern 2007}) 11... Rd8 {[%emt 0:05:01]} 12. Ne3 {[%emt 0:18:10]} b6 {[%emt 0:12:22]} 13. d5 {[%emt 0:21:00]} (13. Bb5 {with more complications.} cxd4 14. cxd4 Bb7 15. Rc1) 13... exd5 {[%emt 0:24:41]} ({Black should try} 13... Nf8 $11) 14. Nxd5 {[%emt 0:00:57]} Nxd5 {[%emt 0:00:12]} 15. Qxd5 {[%emt 0:00:08]} Bb7 {[%emt 0:00:04]} 16. Qf5 {[%emt 0:01:39]} (16. Bf4 {simplifies} Bxd5 17. Bxc7 Rdc8 18. Bg3) 16... Bxg5 {[%emt 0:13:26]} 17. Nxg5 {[%emt 0:00:14]} Nf6 {[%emt 0:00:06] [#] Strongly threatening ...Rd5.} 18. Bc4 {[%emt 0:05:01] Inhibits Rd5.} Rd7 {[%emt 0:02:02]} 19. Rad1 {[%emt 0:11:03]} Rxd1 $40 {[%emt 0:03:36][%mdl 128] Black has some attack. Really sharp!} 20. Rxd1 {[%emt 0:00:02]} Rf8 {[%emt 0:01:08]} 21. Rd3 {[%emt 0:16:23]} ({White should play} 21. Qd3 $11) 21... b5 {[%emt 0:06:14]} (21... Bc8 $5 {[%cal Rc8f5]} 22. Qf3 b5 23. Bxf7+ (23. Bxb5 c4 $17) 23... Rxf7 24. Nxf7 Kxf7 $15) 22. Bxb5 {[%emt 0:01:59] [#]} (22. Bxf7+ $1 $11 Rxf7 23. Qe6 (23. Nxf7 Kxf7 24. Re3 Qd6 $15)) 22... h6 $19 {[%emt 0:01:56]} 23. Rg3 {[%emt 0:00:25] Weighted Error Value: White=0.29 (precise) /Black=0.10 (very precise)} (23. Ne6 {was worth a try.} fxe6 24. Qxe6+ Kh7 25. h3) 0-1

[Event "FIDE WSCC 50 2022"]
[Site "Assisi"]
[Date "2022.11.25"]
[Round "10.4"]
[White "Tereladze, Sopio"]
[Black "Holzke, Frank"]
[Result "1/2-1/2"]
[ECO "A43"]
[WhiteElo "2154"]
[BlackElo "2476"]
[Annotator "TA"]
[PlyCount "63"]
[EventDate "2022.11.14"]
[EventType "swiss"]
[EventCountry "ITA"]
[SourceTitle "playchess.com"]
[Source "ChessBase"]
[SourceQuality "1"]
[TimeControl "40/5400+30:1800+30"]

{[%evp 9,63,18,0,16,95,96,97,95,104,91,83,68,67,67,143,146,150,151,129,135,150,133,145,142,142,139,149,112,129,130,143,100,109,114,136,129,245,247,256,265,306,274,287,287,478,277,579,470,793,783,762,664,564,54,64,25]} 1. d4 {[%emt 0:00:07]} Nf6 {[%emt 0:00:15]} 2. Nf3 {[%emt 0:00:19]} c5 {[%emt 0:00:34]} 3. d5 {[%emt 0:00:54]} b5 {[%emt 0:00:13]} 4. Bg5 {[%emt 0:03:55]} Qb6 {[%emt 0:00:39]} 5. Qd3 {[%emt 0:30:19]} c4 {[%emt 0:03:17]} 6. Qd4 {[%emt 0:02:47] A43: Schmid Benoni.} Qxd4 {[%emt 0:09:02]} (6... Bb7 $11 {remains equal.}) 7. Nxd4 $16 {[%emt 0:00:13] [#]} a6 $146 {[%emt 0:00:43]} ({Predecessor:} 7... Nxd5 8. Nxb5 a6 9. N1c3 axb5 10. Nxd5 Kd8 11. Nb6 Ra6 12. Nxc8 Kxc8 13. g3 g6 {½-½ (37) Voinov,A (2417)-Oleksienko,M (2530) Saratov 2006}) 8. Bxf6 {[%emt 0:01:22] White is better.} exf6 {[%emt 0:01:52]} 9. a4 {[%emt 0:09:11]} Bc5 {[%emt 0:00:36]} 10. e3 {[%emt 0:02:52]} Bb7 $1 {[%emt 0:01:50]} 11. axb5 {[%emt 0:00:52]} Bxd4 {[%emt 0:00:17]} ({Black should try} 11... Bxd5 $14 12. Nc3 axb5 13. Rxa8 Bxa8) 12. exd4 {[%emt 0:00:04] Threatens to win with Nc3.} axb5 {[%emt 0:00:09]} 13. Rxa8 {[%emt 0:00:06]} Bxa8 {[%emt 0:00:07]} 14. Nc3 {[%emt 0:00:14]} O-O {[%emt 0:06:44]} 15. Nxb5 {[%emt 0:00:15]} Bxd5 {[%emt 0:00:27]} 16. Nc3 {[%emt 0:09:18]} Bb7 {[%emt 0:01:59]} 17. Bxc4 {[%emt 0:00:36]} Rc8 {[%emt 0:10:07] Prevents d5.} 18. Bb5 {[%emt 0:02:56]} ({Don't take} 18. Bf1 Nc6 $16) 18... Bxg2 {[%emt 0:01:34]} 19. Rg1 {[%emt 0:00:02]} Bb7 {[%emt 0:01:15]} 20. Kd2 {[%emt 0:00:18]} Nc6 {[%emt 0:04:06]} 21. Bxc6 {[%emt 0:00:48] White is more active.} Rxc6 {[%emt 0:04:40][%mdl 4096] Endgame KRB-KRN} 22. Ra1 {[%emt 0:01:59] Ra7 is the strong threat.} Kf8 {[%emt 0:14:37]} (22... Rd6 $16) 23. Ra7 $18 {[%emt 0:01:47]} Rb6 {[%emt 0:02:42] [#]} 24. Na4 {[%emt 0:01:28]} Rd6 {[%emt 0:00:44]} 25. Kd3 {[%emt 0:06:13]} (25. Rxb7 Rxd4+ 26. Kc3 Rxa4 $16) 25... Bg2 {[%emt 0:06:06] [#]} 26. c4 $1 {[%emt 0:01:21]} Ke8 $2 {[%emt 0:01:13]} (26... Rc6 27. b3 (27. Rxd7 Bf1+ 28. Ke4 f5+ 29. Ke3 Rxc4 $11) 27... d5) 27. b4 {[%emt 0:03:04]} (27. d5 $142) 27... f5 $2 {[%emt 0:00:58]} (27... Rc6 {is tougher.} 28. Kc3 Kd8) 28. b5 {[%emt 0:00:41] Hoping for d5.} Rh6 {[%emt 0:03:31]} (28... Bf1+ $142 29. Kc3 Kd8 30. Ra8+ Kc7) 29. d5 {[%emt 0:02:23] And now b6 would win.} Rh3+ {[%emt 0:04:44]} 30. Kd4 {[%emt 0:02:36]} d6 {[%emt 0:00:54]} 31. c5 $2 {[%emt 0:11:57]} ({Only move:} 31. b6 $18 Rb3 32. b7) 31... Rh4+ $14 {[%emt 0:01:59]} 32. Ke3 {[%emt 0:00:58] Weighted Error Value: White=0.51/Black=0.41} (32. Kc3 $5 {[%cal Rc5c6]} dxc5 33. d6 $14) 1/2-1/2

[Event "FIDE WSCC 50 2022"]
[Site "Assisi"]
[Date "2022.11.25"]
[Round "10.5"]
[White "Novik, Maxim"]
[Black "Pavlovic, Milos"]
[Result "1-0"]
[ECO "C54"]
[WhiteElo "2412"]
[BlackElo "2447"]
[Annotator "TA"]
[PlyCount "55"]
[EventDate "2022.11.14"]
[EventType "swiss"]
[EventCountry "ITA"]
[SourceTitle "playchess.com"]
[Source "ChessBase"]
[SourceQuality "1"]
[TimeControl "40/5400+30:1800+30"]

{[%evp 12,55,18,10,14,12,20,12,14,8,12,11,18,21,24,22,17,11,37,29,32,28,39,22,29,9,10,4,35,16,58,30,50,16,21,25,90,105,133,127,143,174,343,345,375,366]} 1. e4 {[%emt 0:00:01]} e5 {[%emt 0:00:29]} 2. Nf3 {[%emt 0:00:06]} Nc6 {[%emt 0:00:07]} 3. Bc4 {[%emt 0:00:15]} Bc5 {[%emt 0:00:15]} 4. d3 {[%emt 0:00:04]} Nf6 {[%emt 0:00:09]} 5. c3 {[%emt 0:00:12]} d6 {[%emt 0:00:12]} 6. O-O {[%emt 0:00:57]} h6 {[%emt 0:00:24]} 7. Re1 {[%emt 0:04:37]} (7. b4 $5 Bb6 $8 8. a4 $11) 7... O-O {[%emt 0:00:17] C54: Giuoco Piano: 4 c3 Nf6, main lines with 5 d4 and 5 d3.} 8. Nbd2 {[%emt 0:01:36][%cal Bb1d2,Bd2f1,Bf1g3][%mdl 32]} a5 {[%emt 0:01:06]} 9. Nf1 {[%emt 0:00:28]} Bb6 {[%emt 0:07:15] The position is equal.} 10. h3 {[%emt 0:08:16]} Be6 {[%emt 0:02:32]} 11. Bb5 {[%emt 0:02:47][%cal Bc4b5,Bb5a4,Ba4c2][%mdl 32]} Ne7 {[%emt 0:12:04]} 12. Ng3 {[%emt 0:02:27]} c6 {[%emt 0:01:13]} 13. Ba4 {[%emt 0:00:01]} Ng6 {[%emt 0:23:52]} 14. Bc2 {[%emt 0:01:21]} Re8 {[%emt 0:02:27]} 15. d4 $1 {[%emt 0:00:38] [#]} Qe7 $146 {[%emt 0:03:56]} ({Predecessor:} 15... Bc7 16. Bd2 Qe7 17. a4 Rad8 18. Bd3 Qf8 19. Qc2 Nf4 20. Bf1 Ng6 21. c4 c5 {½-½ (52) Giri,A (2764)-Nakamura,H (2736) chess24.com INT 2020}) 16. Be3 {[%emt 0:02:53] [#] Black must now prevent dxe5.} Rad8 {[%emt 0:02:16]} 17. Qd2 {[%emt 0:05:13][%cal Oc3c4]} Qf8 {[%emt 0:01:07]} 18. Rad1 {[%emt 0:01:57]} Bc7 {[%emt 0:00:41]} 19. Qc1 {[%emt 0:01:33]} Ra8 {[%emt 0:18:24]} 20. b3 {[%emt 0:04:34]} d5 {[%emt 0:07:22]} 21. dxe5 {[%emt 0:12:43]} Nxe5 {[%emt 0:00:06]} 22. Nd2 {[%emt 0:09:24][%cal Bf3d2,Bd2e4,Be4f6][%mdl 32]} Ng6 {[%emt 0:01:09] Inhibits f4.} 23. Bd4 {[%emt 0:07:18]} Bxg3 {[%emt 0:10:57]} (23... Qe7 $11 {keeps the balance.}) 24. fxg3 $16 {[%emt 0:00:01]} Qe7 {[%emt 0:00:13]} 25. exd5 {[%emt 0:01:52]} Nxd5 {[%emt 0:00:21]} 26. Ne4 {[%emt 0:04:37]} Qc7 $2 {[%emt 0:00:19]} (26... b6 27. c4 Nb4) 27. c4 $18 {[%emt 0:00:49]} Nde7 {[%emt 0:00:41] [#]} 28. Nf6+ $1 {[%emt 0:03:40][%mdl 512] Weighted Error Value: White=0.06 (flawless) /Black=0.25 (precise)} 1-0